fUSD/lending_fUSD_20240216
["ID","MTS","AMOUNT","RATE_DAILY","PERIOD"]
[314219391,1708090249564,-1347.57,0.00043287,30]
[314219392,1708090249573,-572.12,0.00043287,30]
[314219393,1708090249582,-500.0,0.00043287,30]
[314219394,1708090249591,-1159.86,0.00043287,30]
[314219395,1708090249601,-500.0,0.00043287,30]
[314219396,1708090249611,-1629.48,0.00043287,30]
[314219397,1708090249620,-520.29,0.00043287,30]
[314219398,1708090249631,-500.0,0.00043288,7]
[314219399,1708090249643,-500.0,0.00043288,7]
[314219400,1708090249653,-155.0,0.00043288,7]
[314219401,1708090249663,-6305.24191021,0.00043291,18]
[314219402,1708090249673,-153.81175386,0.00043305,30]
[314219403,1708090249682,-154.44,0.00043385,2]
[314219404,1708090249691,-164.680254,0.000434,15]
[314219405,1708090249700,-150.0,0.00043403,2]
[314219406,1708090249710,-167.38,0.00043447,2]
[314219407,1708090249718,-303.12,0.000435,2]
[314219408,1708090249727,-2670.37132168,0.00043553,5]
[314219409,1708090249736,-153.81175386,0.00043555,30]
[314219410,1708090249745,-500.0,0.00043561,7]
[314219411,1708090249754,-500.0,0.00043561,7]
[314219412,1708090249763,-500.0,0.00043561,30]
[314219413,1708090249772,-1637.84,0.00043561,30]
[314219414,1708090249782,-500.0,0.00043561,30]
[314219415,1708090249880,-500.0,0.00043561,30]
[314219416,1708090249890,-500.0,0.00043561,7]
[314219417,1708090249899,-615.51,0.00043561,30]
[314219418,1708090249909,-544.63,0.00043561,30]
[314219419,1708090249918,-500.0,0.00043561,30]
[314219420,1708090249927,-500.0,0.00043561,30]
[314219421,1708090249936,-500.0,0.00043561,30]
[314219422,1708090249946,-632.82,0.00043561,30]
[314219423,1708090249955,-500.0,0.00043561,30]
[314219424,1708090249965,-500.0,0.00043561,30]
[314219425,1708090249974,-500.0,0.00043561,30]
[314219426,1708090249983,-500.0,0.00043561,30]
[314219427,1708090249993,-679.17,0.00043561,30]
[314219428,1708090250002,-734.55,0.00043561,30]
[314219429,1708090250012,-633.39,0.00043561,30]
[314219430,1708090250022,-500.0,0.00043561,30]
[314219431,1708090250031,-785.0,0.00043561,30]
[314219432,1708090250041,-602.7,0.00043561,30]
[314219433,1708090250051,-2627.06,0.00043561,30]
[314219434,1708090250061,-500.0,0.00043561,30]
[314219435,1708090250070,-1347.57,0.00043561,30]
[314219436,1708090250080,-572.12,0.00043561,30]
[314219437,1708090250090,-500.0,0.00043561,30]
[314219438,1708090250100,-1159.86,0.00043561,30]
[314219439,1708090250109,-605.84,0.00043561,30]
[314219440,1708090250120,-1629.48,0.00043561,30]
[314219441,1708090250132,-319.17,0.000436,4]
[314219442,1708090250142,-319.17,0.000436,4]
[314219443,1708090250151,-319.17,0.000436,4]
[314219444,1708090250161,-319.17,0.000436,4]
[314219445,1708090250170,-319.17,0.000436,4]
[314219446,1708090250180,-319.17,0.000436,4]
[314219447,1708090250190,-319.17,0.000436,4]
[314219448,1708090250200,-319.17,0.000436,4]
[314219449,1708090250210,-319.17,0.000436,4]
[314219450,1708090250220,-319.17,0.000436,4]
[314219451,1708090250229,-319.17,0.000436,4]
[314219452,1708090250239,-319.17,0.000436,4]
[314219453,1708090250249,-319.17,0.000436,4]
[314219454,1708090250258,-319.17,0.000436,4]
[314219455,1708090250267,-319.17,0.000436,4]
[314219456,1708090250277,-319.17,0.000436,4]
[314219457,1708090250288,-319.17,0.000436,4]
[314219458,1708090250298,-319.17,0.000436,4]
[314219459,1708090250308,-319.17,0.000436,4]
[314219460,1708090250319,-319.17,0.000436,4]
[314219461,1708090250330,-153.92,0.000436,4]
[314219462,1708090250340,-153.92,0.000436,4]
[314219463,1708090250350,-150.0,0.000436,15]
[314219464,1708090250360,-399.98577198,0.00043636,11]
[314219465,1708090250369,-151.58014321,0.00043646,20]
[314219466,1708090250381,-609.79,0.000437,7]
[314219467,1708090250391,-1465.59,0.000437,7]
[314219468,1708090250401,-5011.588624,0.000437,6]
[314219469,1708090250411,-155.0,0.0004374,2]
[314219470,1708090250420,-500.0,0.0004376,60]
[314219471,1708090250430,-153.81175386,0.00043788,30]
[314219472,1708090250439,-3556.134008,0.00043798,30]
[314219473,1708090250448,-150.0,0.000438,15]
[314219474,1708090250458,-500.0,0.00043834,7]
[314219475,1708090250467,-500.0,0.00043834,7]
[314219476,1708090250478,-900.0,0.00043834,7]
[314219477,1708090250488,-500.0,0.00043835,30]
[314219478,1708090250497,-500.0,0.00043835,30]
[314219479,1708090250508,-1637.84,0.00043835,30]
[314219480,1708090250518,-500.0,0.00043835,30]
[314219481,1708090250527,-178.53673394,0.00043835,7]
[314219482,1708090250537,-615.51,0.00043835,30]
[314219483,1708090250547,-500.0,0.00043835,30]
[314219484,1708090250559,-500.0,0.00043835,30]
[314219485,1708090250569,-500.0,0.00043835,30]
[314219486,1708090250579,-500.0,0.00043835,30]
[314219487,1708090250590,-500.0,0.00043835,30]
[314219488,1708090250601,-500.0,0.00043835,30]
[314219489,1708090250613,-500.0,0.00043835,30]
[314219490,1708090250627,-679.17,0.00043835,30]
[314219491,1708090250643,-734.55,0.00043835,30]
[314219492,1708090250655,-633.39,0.00043835,30]
[314219493,1708090250666,-500.0,0.00043835,30]
[314219494,1708090250678,-785.0,0.00043835,30]
[314219495,1708090250690,-602.7,0.00043835,30]
[314219496,1708090250702,-2627.06,0.00043835,30]
[314219497,1708090250712,-500.0,0.00043835,30]
[314219498,1708090250728,-1347.57,0.00043835,30]
[314219499,1708090250738,-572.12,0.00043835,30]
[314219500,1708090250748,-500.0,0.00043835,30]
[314219501,1708090250759,-1159.86,0.00043835,30]
[314219502,1708090250771,-1629.48,0.00043835,30]
[314219503,1708090250781,-155.0,0.00043836,7]
[314219504,1708090250790,-153.81175386,0.00043895,30]
[314219505,1708090250800,-153.81175386,0.00043934,30]
[314219506,1708090250811,-523.21827158,0.00044,30]
[314219507,1708090250821,-350.88923306,0.00044,44]
[314219508,1708090250831,-3294.43378057,0.00044,30]
[314219509,1708090250841,-10000.0,0.00044,30]
[314219510,1708090250851,-1372.308,0.00044078,2]
[314219511,1708090250862,-438.186,0.00044078,2]
[314219512,1708090250871,-2871.0,0.00044078,2]
[314219513,1708090250886,-200.0,0.000441,2]
[314219514,1708090250897,-500.0,0.00044107,7]
[314219515,1708090250907,-500.0,0.00044107,7]
[314219516,1708090250916,-500.0,0.00044109,30]
[314219517,1708090250926,-500.0,0.00044109,30]
[314219518,1708090250936,-1637.84,0.00044109,30]
[314219519,1708090250945,-500.0,0.00044109,30]
[314219520,1708090250955,-615.51,0.00044109,30]
[314219521,1708090250966,-500.0,0.00044109,30]
[314219522,1708090250976,-500.0,0.00044109,30]
[314219523,1708090250986,-500.0,0.00044109,30]
[314219524,1708090250996,-500.0,0.00044109,30]
[314219525,1708090251006,-196.94,0.00044109,30]
[314219526,1708090251017,-500.0,0.00044109,30]
[314219527,1708090251027,-500.0,0.00044109,30]
[314219528,1708090251036,-679.17,0.00044109,30]
[314219529,1708090251045,-734.55,0.00044109,30]
[314219530,1708090251055,-633.39,0.00044109,30]
[314219531,1708090251065,-500.0,0.00044109,30]
[314219532,1708090251074,-785.0,0.00044109,30]
[314219533,1708090251083,-602.7,0.00044109,30]
[314219534,1708090251093,-2627.06,0.00044109,30]
[314219535,1708090251103,-332.9,0.00044109,30]
[314219536,1708090251112,-1347.57,0.00044109,30]
[314219537,1708090251122,-572.12,0.00044109,30]
[314219538,1708090251136,-500.0,0.00044109,30]
[314219539,1708090251146,-1159.86,0.00044109,30]
[314219540,1708090251156,-1629.48,0.00044109,30]
[314219541,1708090251166,-200.0,0.00044233,20]
[314219542,1708090251176,-153.81175386,0.00044305,30]
[314219543,1708090251185,-2000.0,0.00044322,120]
[314219544,1708090251194,-2000.0,0.00044322,120]
[314219545,1708090251204,-381.543,0.00044378,30]
[314219546,1708090251215,-150.0,0.00044378,30]
[314219547,1708090251225,-500.0,0.0004438,7]
[314219548,1708090251234,-500.0,0.0004438,7]
[314219549,1708090251244,-1009.8816,0.00044382,2]
[314219550,1708090251254,-1050.0,0.00044382,7]
[314219551,1708090251264,-500.0,0.00044383,30]
[314219552,1708090251274,-500.0,0.00044383,30]
[314219553,1708090251283,-1637.84,0.00044383,30]
[314219554,1708090251293,-500.0,0.00044383,30]
[314219555,1708090251302,-615.51,0.00044383,30]
[314219556,1708090251312,-500.0,0.00044383,30]
[314219557,1708090251322,-500.0,0.00044383,30]
[314219558,1708090251332,-500.0,0.00044383,30]
[314219559,1708090251341,-500.0,0.00044383,30]
[314219560,1708090251351,-500.0,0.00044383,30]
[314219561,1708090251360,-500.0,0.00044383,30]
[314219562,1708090251370,-679.17,0.00044383,30]
[314219563,1708090251382,-734.55,0.00044383,30]
[314219564,1708090251392,-633.39,0.00044383,30]
[314219565,1708090251401,-500.0,0.00044383,30]
[314219566,1708090251412,-785.0,0.00044383,30]
[314219567,1708090251422,-602.7,0.00044383,30]
[314219568,1708090251433,-2627.06,0.00044383,30]
[314219569,1708090251442,-1347.57,0.00044383,30]
[314219570,1708090251452,-572.12,0.00044383,30]
[314219571,1708090251461,-500.0,0.00044383,30]
[314219572,1708090251471,-1159.86,0.00044383,30]
[314219573,1708090251481,-1629.48,0.00044383,30]
[314219574,1708090251491,-155.0,0.00044384,7]
[314219575,1708090251501,-1465.59,0.000444,7]
[314219576,1708090251511,-151.58014321,0.00044408,23]
[314219577,1708090251520,-744.0,0.00044409,5]
[314219578,1708090251530,-150.0,0.00044412,2]
[314219579,1708090251539,-153.81175386,0.00044447,30]
[314219580,1708090251548,-10000.0,0.000445,5]
[314219581,1708090251559,-153.81175386,0.00044581,30]
[314219582,1708090251569,-206.0,0.00044616,24]
[314219583,1708090251579,-1797.006654,0.00044635,30]
[314219584,1708090251588,-3556.134008,0.00044635,30]
[314219585,1708090251597,-2595.150718,0.00044635,30]
[314219586,1708090251607,-153.81175386,0.00044644,30]
[314219587,1708090251618,-500.0,0.00044654,7]
[314219588,1708090251627,-939.28,0.00044654,7]
[314219589,1708090251642,-500.0,0.00044657,30]
[314219590,1708090251652,-500.0,0.00044657,30]
[314219591,1708090251661,-1637.84,0.00044657,30]
[314219592,1708090251671,-500.0,0.00044657,30]
[314219593,1708090251680,-615.51,0.00044657,30]
[314219594,1708090251690,-500.0,0.00044657,30]
[314219595,1708090251700,-500.0,0.00044657,30]
[314219596,1708090251710,-500.0,0.00044657,30]
[314219597,1708090251719,-500.0,0.00044657,30]
[314219598,1708090251729,-500.0,0.00044657,30]
[314219599,1708090251739,-500.0,0.00044657,30]
[314219600,1708090251748,-679.17,0.00044657,30]
[314219601,1708090251758,-734.55,0.00044657,30]
[314219602,1708090251768,-633.39,0.00044657,30]
[314219603,1708090251777,-576.08,0.00044657,30]
[314219604,1708090251787,-785.0,0.00044657,30]
[314219605,1708090251797,-602.7,0.00044657,30]
[314219606,1708090251807,-2627.06,0.00044657,30]
[314219607,1708090251817,-1347.57,0.00044657,30]
[314219608,1708090251826,-572.12,0.00044657,30]
[314219609,1708090251835,-500.0,0.00044657,30]
[314219610,1708090251844,-1629.48,0.00044657,30]
[314219611,1708090251853,-6305.24191021,0.00044664,19]
[314219612,1708090251862,-321.24,0.0004468,2]
[314219613,1708090251871,-153.81175386,0.00044696,30]
[314219614,1708090251882,-167.38,0.00044752,2]
[314219615,1708090251891,-150.0,0.00044824,60]
[314219616,1708090251901,-2675.74,0.00044864,120]
[314219617,1708090251910,-730.75,0.000449,7]
[314219618,1708090251919,-90000.0,0.000449,30]
[314219619,1708090251928,-500.0,0.00044927,7]
[314219620,1708090251937,-1200.0,0.0004493,7]
[314219621,1708090251945,-500.0,0.00044931,30]
[314219622,1708090251955,-1637.84,0.00044931,30]
[314219623,1708090251963,-500.0,0.00044931,30]
[314219624,1708090251973,-500.0,0.00044931,30]
[314219625,1708090251982,-615.51,0.00044931,30]
[314219626,1708090251992,-500.0,0.00044931,30]
[314219627,1708090252001,-493.79,0.00044931,30]
[314219628,1708090252011,-500.0,0.00044931,30]
[314219629,1708090252020,-500.0,0.00044931,30]
[314219630,1708090252030,-236.88,0.00044931,30]
[314219631,1708090252039,-500.0,0.00044931,30]
[314219632,1708090252048,-679.17,0.00044931,30]
[314219633,1708090252057,-734.55,0.00044931,30]
[314219634,1708090252066,-633.39,0.00044931,30]
[314219635,1708090252163,-785.0,0.00044931,30]
[314219636,1708090252173,-602.7,0.00044931,30]
[314219637,1708090252183,-2627.06,0.00044931,30]
[314219638,1708090252193,-1347.57,0.00044931,30]
[314219639,1708090252203,-572.12,0.00044931,30]
[314219640,1708090252212,-500.0,0.00044931,30]
[314219641,1708090252222,-1629.48,0.00044931,30]
[314219642,1708090252232,-155.0,0.00044932,7]
[314219643,1708090252242,-100000.0,0.00045,35]
[314219644,1708090252251,-506.12995973,0.00045,4]
[314219645,1708090252261,-4832.72150516,0.00045,17]
[314219646,1708090252270,-300.0,0.00045,45]
[314219647,1708090252280,-10000.0,0.00045,30]
[314219648,1708090252289,-3293.0,0.00045,45]
[314219649,1708090252299,-10000.0,0.00045,45]
[314219650,1708090252308,-2670.37132168,0.00045132,5]
[314219651,1708090252317,-151.58014321,0.0004517,26]
[314219652,1708090252326,-180.261755,0.00045173,30]
[314219653,1708090252335,-500.0,0.000452,7]
[314219654,1708090252344,-380.1771209,0.00045205,30]
[314219655,1708090252353,-1637.84,0.00045205,30]
[314219656,1708090252362,-403.43,0.00045205,30]
[314219657,1708090252372,-500.0,0.00045205,30]
[314219658,1708090252382,-615.51,0.00045205,30]
[314219659,1708090252392,-500.0,0.00045205,30]
[314219660,1708090252401,-500.0,0.00045205,30]
[314219661,1708090252410,-500.0,0.00045205,30]
[314219662,1708090252419,-500.0,0.00045205,30]
[314219663,1708090252428,-679.17,0.00045205,30]
[314219664,1708090252438,-734.55,0.00045205,30]
[314219665,1708090252446,-633.39,0.00045205,30]
[314219666,1708090252456,-785.0,0.00045205,30]
[314219667,1708090252465,-602.7,0.00045205,30]
[314219668,1708090252474,-2627.06,0.00045205,30]
[314219669,1708090252483,-1347.57,0.00045205,30]
[314219670,1708090252493,-572.12,0.00045205,30]
[314219671,1708090252502,-500.0,0.00045205,30]
[314219672,1708090252512,-1629.48,0.00045205,30]
[314219673,1708090252522,-153.81175386,0.00045246,30]
[314219674,1708090252532,-608.41,0.00045297,2]
[314219675,1708090252541,-730.75,0.000454,7]
[314219676,1708090252551,-150.0,0.00045422,2]
[314219677,1708090252561,-500.0,0.00045473,7]
[314219678,1708090252570,-1350.0,0.00045478,30]
[314219679,1708090252580,-1637.84,0.00045479,30]
[314219680,1708090252590,-500.0,0.00045479,30]
[314219681,1708090252599,-615.51,0.00045479,30]
[314219682,1708090252609,-500.0,0.00045479,30]
[314219683,1708090252622,-500.0,0.00045479,30]
[314219684,1708090252634,-500.0,0.00045479,30]
[314219685,1708090252643,-500.0,0.00045479,30]
[314219686,1708090252652,-679.17,0.00045479,30]
[314219687,1708090252662,-734.55,0.00045479,30]
[314219688,1708090252672,-633.39,0.00045479,30]
[314219689,1708090252681,-785.0,0.00045479,30]
[314219690,1708090252690,-602.7,0.00045479,30]
[314219691,1708090252700,-2627.06,0.00045479,30]
[314219692,1708090252709,-1347.57,0.00045479,30]
[314219693,1708090252719,-572.12,0.00045479,30]
[314219694,1708090252729,-155.0,0.00045479,30]
[314219695,1708090252738,-500.0,0.00045479,30]
[314219696,1708090252748,-1629.48,0.00045479,30]
[314219697,1708090252757,-152.900207,0.00045653,40]
[314219698,1708090252766,-153.81175386,0.00045721,30]
[314219699,1708090252776,-500.0,0.00045747,7]
[314219700,1708090252785,-1637.84,0.00045753,30]
[314219701,1708090252794,-481.74,0.00045753,30]
[314219702,1708090252802,-615.51,0.00045753,30]
[314219703,1708090252812,-173.17166137,0.00045753,30]
[314219704,1708090252821,-500.0,0.00045753,30]
[314219705,1708090252830,-500.0,0.00045753,30]
[314219706,1708090252840,-500.0,0.00045753,30]
[314219707,1708090252850,-679.17,0.00045753,30]
[314219708,1708090252859,-734.55,0.00045753,30]
[314219709,1708090252868,-633.39,0.00045753,30]
[314219710,1708090252877,-785.0,0.00045753,30]
[314219711,1708090252889,-602.7,0.00045753,30]
[314219712,1708090252898,-2627.06,0.00045753,30]
[314219713,1708090252908,-1347.57,0.00045753,30]
[314219714,1708090252917,-572.12,0.00045753,30]
[314219715,1708090252928,-500.0,0.00045753,30]
[314219716,1708090252939,-1629.48,0.00045753,30]
[314219717,1708090252950,-180.36270987,0.00045778,30]
[314219718,1708090252960,-1043.07,0.00045828,15]
[314219719,1708090252969,-730.75,0.000459,7]
[314219720,1708090252979,-90000.0,0.000459,30]
[314219721,1708090252988,-209.87897357,0.00045915,30]
[314219722,1708090252997,-392.76976078,0.00045919,30]
[314219723,1708090253006,-364.25955076,0.00045919,30]
[314219724,1708090253016,-1821.2977538,0.00045919,30]
[314219725,1708090253025,-1106.67524745,0.00045919,30]
[314219726,1708090253035,-279.95922163,0.00045919,30]
[314219727,1708090253045,-236.9485284,0.00045923,30]
[314219728,1708090253054,-931.94678775,0.00045923,30]
[314219729,1708090253064,-151.58014321,0.00045931,29]
[314219730,1708090253074,-153.81175386,0.0004596,30]
[314219731,1708090253083,-915.0,0.00045996,5]
[314219732,1708090253093,-100000.0,0.00046,36]
[314219733,1708090253102,-300.0,0.00046,46]
[314219734,1708090253111,-1000.0,0.00046022,2]
[314219735,1708090253121,-1500.0,0.00046026,30]
[314219736,1708090253131,-1637.84,0.00046027,30]
[314219737,1708090253141,-615.51,0.00046027,30]
[314219738,1708090253152,-500.0,0.00046027,30]
[314219739,1708090253161,-500.0,0.00046027,30]
[314219740,1708090253171,-500.0,0.00046027,30]
[314219741,1708090253182,-679.17,0.00046027,30]
[314219742,1708090253191,-734.55,0.00046027,30]
[314219743,1708090253201,-633.39,0.00046027,30]
[314219744,1708090253211,-785.0,0.00046027,30]
[314219745,1708090253220,-602.7,0.00046027,30]
[314219746,1708090253230,-2627.06,0.00046027,30]
[314219747,1708090253240,-1347.57,0.00046027,30]
[314219748,1708090253251,-572.12,0.00046027,30]
[314219749,1708090253261,-155.0,0.00046027,30]
[314219750,1708090253271,-500.0,0.00046027,30]
[314219751,1708090253280,-1629.48,0.00046027,30]
[314219752,1708090253290,-166.37,0.00046034,2]
[314219753,1708090253299,-6305.24191021,0.00046036,21]
[314219754,1708090253308,-868.02286732,0.0004606,120]
[314219755,1708090253318,-331.6713111,0.000462,2]
[314219756,1708090253327,-1000.0,0.000463,2]
[314219757,1708090253337,-730.75,0.000463,7]
[314219758,1708090253347,-1637.84,0.00046301,30]
[314219759,1708090253356,-615.51,0.00046301,30]
[314219760,1708090253366,-500.0,0.00046301,30]
[314219761,1708090253375,-500.0,0.00046301,30]
[314219762,1708090253386,-500.0,0.00046301,30]
[314219763,1708090253395,-679.17,0.00046301,30]
[314219764,1708090253405,-734.55,0.00046301,30]
[314219765,1708090253415,-633.39,0.00046301,30]
[314219766,1708090253424,-785.0,0.00046301,30]
[314219767,1708090253434,-602.7,0.00046301,30]
[314219768,1708090253444,-2627.06,0.00046301,30]
[314219769,1708090253454,-1347.57,0.00046301,30]
[314219770,1708090253463,-572.12,0.00046301,30]
[314219771,1708090253473,-500.0,0.00046301,30]
[314219772,1708090253483,-1629.48,0.00046301,30]
[314219773,1708090253493,-153.81175386,0.00046407,30]
[314219774,1708090253502,-150.0,0.00046431,2]
[314219775,1708090253512,-206.0,0.00046539,28]
[314219776,1708090253521,-889.033502,0.00046548,30]
[314219777,1708090253531,-581.79988346,0.00046574,30]
[314219778,1708090253541,-3000.0,0.00046575,120]
[314219779,1708090253550,-1637.84,0.00046575,30]
[314219780,1708090253560,-615.51,0.00046575,30]
[314219781,1708090253569,-500.0,0.00046575,30]
[314219782,1708090253580,-500.0,0.00046575,30]
[314219783,1708090253591,-237.32,0.00046575,30]
[314219784,1708090253601,-679.17,0.00046575,30]
[314219785,1708090253611,-734.55,0.00046575,30]
[314219786,1708090253621,-633.39,0.00046575,30]
[314219787,1708090253633,-785.0,0.00046575,30]
[314219788,1708090253643,-602.7,0.00046575,30]
[314219789,1708090253652,-1347.57,0.00046575,30]
[314219790,1708090253661,-572.12,0.00046575,30]
[314219791,1708090253670,-155.0,0.00046575,30]
[314219792,1708090253681,-500.0,0.00046575,30]
[314219793,1708090253690,-1629.48,0.00046575,30]
[314219794,1708090253699,-399.98577198,0.00046621,12]
[314219795,1708090253709,-151.58014321,0.00046693,32]
[314219796,1708090253719,-2670.37132168,0.00046711,5]
[314219797,1708090253728,-154.44,0.00046722,2]
[314219798,1708090253738,-585.6,0.00046763,2]
[314219799,1708090253747,-1637.84,0.00046849,30]
[314219800,1708090253756,-615.51,0.00046849,30]
[314219801,1708090253766,-500.0,0.00046849,30]
[314219802,1708090253776,-500.0,0.00046849,30]
[314219803,1708090253786,-679.17,0.00046849,30]
[314219804,1708090253795,-734.55,0.00046849,30]
[314219805,1708090253804,-633.39,0.00046849,30]
[314219806,1708090253813,-785.0,0.00046849,30]
[314219807,1708090253822,-602.7,0.00046849,30]
[314219808,1708090253832,-1347.57,0.00046849,30]
[314219809,1708090253842,-572.12,0.00046849,30]
[314219810,1708090253852,-512.67,0.00046849,30]
[314219811,1708090253861,-1629.48,0.00046849,30]
[314219812,1708090253871,-100000.0,0.00047,37]
[314219813,1708090253880,-300.0,0.00047,47]
[314219814,1708090253891,-2871.0,0.00047078,2]
[314219815,1708090253900,-1637.84,0.00047123,30]
[314219816,1708090253909,-615.51,0.00047123,30]
[314219817,1708090253918,-204.185687,0.00047123,120]
[314219818,1708090253929,-500.0,0.00047123,30]
[314219819,1708090253938,-169.75,0.00047123,30]
[314219820,1708090253948,-679.17,0.00047123,30]
[314219821,1708090253958,-734.55,0.00047123,30]
[314219822,1708090253967,-633.39,0.00047123,30]
[314219823,1708090253977,-785.0,0.00047123,30]
[314219824,1708090253986,-602.7,0.00047123,30]
[314219825,1708090253996,-1347.57,0.00047123,30]
[314219826,1708090254006,-572.12,0.00047123,30]
[314219827,1708090254015,-155.0,0.00047123,30]
[314219828,1708090254024,-1629.48,0.00047123,30]
[314219829,1708090254033,-1070.71354094,0.00047172,2]
[314219830,1708090254043,-625.65113426,0.00047172,2]
[314219831,1708090254052,-627.17538346,0.00047172,2]
[314219832,1708090254061,-186.50213598,0.00047172,2]
[314219833,1708090254071,-152.90020697,0.00047387,42]
[314219834,1708090254080,-1637.96321628,0.00047397,30]
[314219835,1708090254090,-615.64,0.00047397,30]
[314219836,1708090254100,-266.89801732,0.00047397,30]
[314219837,1708090254186,-679.2,0.00047397,30]
[314219838,1708090254204,-734.77,0.00047397,30]
[314219839,1708090254213,-633.48,0.00047397,30]
[314219840,1708090254223,-785.06393912,0.00047397,30]
[314219841,1708090254232,-602.89549648,0.00047397,30]
[314219842,1708090254241,-1347.70938452,0.00047397,30]
[314219843,1708090254251,-572.35,0.00047397,30]
[314219844,1708090254261,-1629.56779719,0.00047397,30]
[314219845,1708090254271,-6305.24191021,0.00047409,23]
[314219846,1708090254281,-150.0,0.0004744,2]
[314219847,1708090254291,-151.58014321,0.00047455,34]
[314219848,1708090254300,-153.81175386,0.00047505,30]
[314219849,1708090254310,-153.81175386,0.00047551,30]
[314219850,1708090254319,-608.41,0.0004756,2]
[314219851,1708090254329,-153.81175386,0.00047635,30]
[314219852,1708090254338,-1126.0,0.0004764,5]
[314219853,1708090254348,-3000.0,0.00047671,120]
[314219854,1708090254358,-155.0,0.00047671,30]
[314219855,1708090254368,-153.81175386,0.00047704,30]
[314219856,1708090254378,-500.0,0.0004774,90]
[314219857,1708090254391,-153.81175386,0.00047796,30]
[314219858,1708090254401,-1465.59,0.000478,7]
[314219859,1708090254409,-200.0,0.00047878,49]
[314219860,1708090254419,-200.0,0.00047878,48]
[314219861,1708090254428,-200.0,0.00047878,47]
[314219862,1708090254438,-200.0,0.00047878,46]
[314219863,1708090254448,-200.0,0.00047878,45]
[314219864,1708090254457,-2804.66304571,0.000479,2]
[314219865,1708090254467,-609.79,0.000479,7]
[314219866,1708090254476,-1251.0,0.000479,2]
[314219867,1708090254486,-444.516751,0.00047945,30]
[314219868,1708090254496,-153.81175406,0.00047971,30]
[314219869,1708090254505,-1444.0726728,0.00047984,120]
[314219870,1708090254515,-200.0,0.00047986,25]
[314219871,1708090254525,-100000.0,0.00048,38]
[314219872,1708090254535,-299.40455913,0.00048,2]
[314219873,1708090254544,-300.0,0.00048,48]
[314219874,1708090254554,-170.0,0.00048,90]
[314219875,1708090254564,-19034.70097032,0.00048,10]
[314219876,1708090254573,-1075.48479108,0.0004802,10]
[314219877,1708090254583,-170.61912571,0.00048079,44]
[314219878,1708090254593,-151.58014321,0.00048217,37]
[314219879,1708090254602,-155.0,0.00048219,30]
[314219880,1708090254612,-1444.0726728,0.00048282,120]
[314219881,1708090254625,-2670.37132168,0.00048289,5]
[314219882,1708090254637,-2776.49,0.00048348,2]
[314219883,1708090254646,-150.0,0.0004845,2]
[314219884,1708090254655,-206.0,0.00048462,33]
[314219885,1708090254664,-6644.9504,0.00048498,39]
[314219886,1708090254673,-1465.59,0.000485,7]
[314219887,1708090254682,-174.64,0.00048698,2]
[314219888,1708090254691,-1444.0726728,0.00048731,120]
[314219889,1708090254701,-3000.0,0.00048767,120]
[314219890,1708090254711,-155.0,0.00048767,30]